[Event "Titled Tuesday Blitz April 11 Early 2023"]
[White "So, Wesley"]
[Black "Al-Tarboush, Ward"]
[WhiteFideId "5202213"]
[BlackFideId "7601450"]
[WhiteElo "2749"]
[BlackElo "2265"]
[Result "1-0"]
[Round "06"]
[TimeControl "180+2"]
[Date "2023.04.11"]
[WhiteClock "0:00:33"]
[BlackClock "0:00:46"]

1. d4 {[%clk 0:02:52]}  d5 {[%clk 0:02:58]} 2. Nf3 {[%clk 0:02:47]}  Nf6 {[%clk 0:02:58]} 3. Bf4 {[%clk 0:02:48]}  c5 {[%clk 0:02:55]} 4. e3 {[%clk 0:02:48]}  Nc6 {[%clk 0:02:53]} 5. Nbd2 {[%clk 0:02:49]}  cxd4 {[%clk 0:02:49]} 6. exd4 {[%clk 0:02:50]}  Bf5 {[%clk 0:02:49]} 7. c3 {[%clk 0:02:47]}  e6 {[%clk 0:02:49]} 8. Nh4 {[%clk 0:02:46]}  Bg6 {[%clk 0:02:48]} 9. Nxg6 {[%clk 0:02:43]}  hxg6 {[%clk 0:02:49]} 10. Bd3 {[%clk 0:02:42]}  Bd6 {[%clk 0:02:49]} 11. Be3 {[%clk 0:02:42]}  Qc7 {[%clk 0:02:49]} 12. g3 {[%clk 0:02:41]}  Nh5 {[%clk 0:02:38]} 13. Nf3 {[%clk 0:02:32]}  O-O-O {[%clk 0:02:31]} 14. Qa4 {[%clk 0:02:18]}  Kb8 {[%clk 0:02:30]} 15. O-O-O {[%clk 0:02:16]}  Nf6 {[%clk 0:02:21]} 16. h3 {[%clk 0:02:14]}  Nd7 {[%clk 0:02:11]} 17. Kb1 {[%clk 0:02:13]}  Nb6 {[%clk 0:02:12]} 18. Qc2 {[%clk 0:02:13]}  Na5 {[%clk 0:02:11]} 19. h4 {[%clk 0:02:11]}  Nbc4 {[%clk 0:02:07]} 20. Bc1 {[%clk 0:02:08]}  Qb6 {[%clk 0:02:07]} 21. Ka1 {[%clk 0:02:07]}  Qc7 {[%clk 0:01:56]} 22. Ng5 {[%clk 0:02:00]}  Rdf8 {[%clk 0:01:48]} 23. Rhe1 {[%clk 0:01:58]}  Ka8 {[%clk 0:01:48]} 24. Re2 {[%clk 0:01:49]}  Be7 {[%clk 0:01:47]} 25. Rde1 {[%clk 0:01:48]}  Nd6 {[%clk 0:01:47]} 26. Bf4 {[%clk 0:01:43]}  Qd7 {[%clk 0:01:43]} 27. Nf3 {[%clk 0:01:40]}  Nc6 {[%clk 0:01:41]} 28. Qa4 {[%clk 0:01:32]}  Nc8 {[%clk 0:01:39]} 29. Bb5 {[%clk 0:01:31]}  Nb6 {[%clk 0:01:39]} 30. Qc2 {[%clk 0:01:17]}  Bd6 {[%clk 0:01:39]} 31. Bc1 {[%clk 0:01:02]}  a6 {[%clk 0:01:38]} 32. Bd3 {[%clk 0:01:02]}  Rc8 {[%clk 0:01:33]} 33. Qb3 {[%clk 0:01:01]}  Ka7 {[%clk 0:01:32]} 34. Ng5 {[%clk 0:01:02]}  Na5 {[%clk 0:01:32]} 35. Qd1 {[%clk 0:01:01]}  Rc7 {[%clk 0:01:28]} 36. Nxf7 {[%clk 0:00:56]}  Qxf7 {[%clk 0:01:27]} 37. Rxe6 {[%clk 0:00:57]}  Qd7 {[%clk 0:01:25]} 38. Rxg6 {[%clk 0:00:56]}  Rhc8 {[%clk 0:01:24]} 39. Ree6 {[%clk 0:00:56]}  Rc6 {[%clk 0:01:23]} 40. Bf5 {[%clk 0:00:51]}  Qc7 {[%clk 0:01:24]} 41. Rxd6 {[%clk 0:00:45]}  Rxd6 {[%clk 0:01:24]} 42. Bf4 {[%clk 0:00:45]}  Nbc4 {[%clk 0:01:19]} 43. Bxc8 {[%clk 0:00:42]}  Qxc8 {[%clk 0:01:13]} 44. Bxd6 {[%clk 0:00:43]}  Qf5 {[%clk 0:01:11]} 45. Bc5+ {[%clk 0:00:43]}  b6 {[%clk 0:01:10]} 46. Rxg7+ {[%clk 0:00:43]}  Ka8 {[%clk 0:01:10]} 47. Qg4 {[%clk 0:00:39]}  Qxg4 {[%clk 0:01:02]} 48. Rxg4 {[%clk 0:00:40]}  bxc5 {[%clk 0:01:02]} 49. h5 {[%clk 0:00:41]}  cxd4 {[%clk 0:00:59]} 50. h6 {[%clk 0:00:41]}  d3 {[%clk 0:00:47]} 51. h7 {[%clk 0:00:40]}  d2 {[%clk 0:00:48]} 52. h8=Q+ {[%clk 0:00:41]}  Kb7 {[%clk 0:00:48]} 53. Rg7+ {[%clk 0:00:40]}  Kb6 {[%clk 0:00:49]} 54. Qd8+ {[%clk 0:00:40]}  Kb5 {[%clk 0:00:48]} 55. Qxd5+ {[%clk 0:00:39]}  Ka4 {[%clk 0:00:47]} 56. Rg4 {[%clk 0:00:33]}  Nb3+ {[%clk 0:00:44]} 57. axb3+ {[%clk 0:00:32]}  Kxb3 {[%clk 0:00:45]} 58. Qxc4+ {[%clk 0:00:31]}  Kc2 {[%clk 0:00:45]} 59. Qe2 {[%clk 0:00:30]}  Kc1 {[%clk 0:00:46]} 60. Qe3 {[%clk 0:00:30]}  a5 {[%clk 0:00:45]} 61. Rd4 {[%clk 0:00:29]}  Kc2 {[%clk 0:00:46]} 62. Rxd2+ {[%clk 0:00:29]}  Kb3 {[%clk 0:00:46]} 63. g4 {[%clk 0:00:29]}  a4 {[%clk 0:00:46]} 64. g5 {[%clk 0:00:30]}  a3 {[%clk 0:00:46]} 65. g6 {[%clk 0:00:31]}  a2 {[%clk 0:00:44]} 66. g7 {[%clk 0:00:30]}  Ka4 {[%clk 0:00:44]} 67. g8=Q {[%clk 0:00:30]}  Kb5 {[%clk 0:00:45]} 68. f4 {[%clk 0:00:31]}  Ka4 {[%clk 0:00:45]} 69. f5 {[%clk 0:00:32]}  Kb5 {[%clk 0:00:46]} 70. f6 {[%clk 0:00:32]}  Kc6 {[%clk 0:00:46]} 71. f7 {[%clk 0:00:33]}  Kb5 {[%clk 0:00:46]} 72. f8=Q {[%clk 0:00:34]}  Ka4 {[%clk 0:00:47]} 73. c4 {[%clk 0:00:32]}  Ka5 {[%clk 0:00:47]} 74. c5 {[%clk 0:00:33]}  Ka4 {[%clk 0:00:46]} 75. c6 {[%clk 0:00:33]}  Kb5 {[%clk 0:00:46]} 76. c7 {[%clk 0:00:33]}  Ka5 {[%clk 0:00:45]} 77. c8=Q {[%clk 0:00:34]}  Kb5 {[%clk 0:00:45]} 78. Qb8+ {[%clk 0:00:34]}  Ka4 {[%clk 0:00:45]} 79. b3+ {[%clk 0:00:31]}  Ka5 {[%clk 0:00:45]} 80. b4+ {[%clk 0:00:31]}  Ka4 {[%clk 0:00:45]} 81. b5 {[%clk 0:00:32]}  Ka5 {[%clk 0:00:45]} 82. b6 {[%clk 0:00:33]}  Ka6 {[%clk 0:00:45]} 83. b7 {[%clk 0:00:33]}  Kb5 {[%clk 0:00:45]} 84. Qc7 {[%clk 0:00:33]}  Ka6 {[%clk 0:00:46]} 85. Kxa2 {[%clk 0:00:32]}  Kb5 {[%clk 0:00:46]} 86. Kb3 {[%clk 0:00:32]}  Ka6 {[%clk 0:00:46]} 87. Kc2 {[%clk 0:00:33]} 1-0


[Site "https://www.chess.com"]

[Event "Titled Tuesday Blitz April 11 Early 2023"]
[White "Sadhwani, Raunak"]
[Black "Jaferian, Koosha"]
[WhiteFideId "35093487"]
[BlackFideId "12507440"]
[WhiteElo "2631"]
[BlackElo "2073"]
[Result "1-0"]
[Round "06"]
[TimeControl "180+2"]
[Date "2023.04.11"]
[WhiteClock "0:01:11"]
[BlackClock "0:00:11"]

1. Nf3 {[%clk 0:03:00]}  d5 {[%clk 0:02:59]} 2. b3 {[%clk 0:03:00]}  Nf6 {[%clk 0:02:59]} 3. Bb2 {[%clk 0:03:00]}  Bf5 {[%clk 0:02:59]} 4. g3 {[%clk 0:02:59]}  e6 {[%clk 0:03:00]} 5. Bg2 {[%clk 0:03:00]}  h6 {[%clk 0:03:00]} 6. O-O {[%clk 0:03:00]}  Be7 {[%clk 0:03:01]} 7. d3 {[%clk 0:03:01]}  a5 {[%clk 0:02:59]} 8. a3 {[%clk 0:03:00]}  Nbd7 {[%clk 0:02:57]} 9. Nbd2 {[%clk 0:03:00]}  Bh7 {[%clk 0:02:56]} 10. Re1 {[%clk 0:03:00]}  O-O {[%clk 0:02:54]} 11. e4 {[%clk 0:03:01]}  a4 {[%clk 0:02:53]} 12. b4 {[%clk 0:03:00]}  c5 {[%clk 0:02:53]} 13. b5 {[%clk 0:02:49]}  Qa5 {[%clk 0:02:27]} 14. c4 {[%clk 0:02:49]}  d4 {[%clk 0:02:26]} 15. Nf1 {[%clk 0:02:40]}  e5 {[%clk 0:02:24]} 16. Nh4 {[%clk 0:02:39]}  Rfe8 {[%clk 0:02:18]} 17. Nf5 {[%clk 0:02:36]}  Bf8 {[%clk 0:02:18]} 18. Bc1 {[%clk 0:02:36]}  Qd8 {[%clk 0:02:14]} 19. g4 {[%clk 0:02:35]}  Re6 {[%clk 0:01:59]} 20. N1g3 {[%clk 0:02:35]}  Ne8 {[%clk 0:01:59]} 21. h4 {[%clk 0:02:35]}  Nd6 {[%clk 0:01:53]} 22. g5 {[%clk 0:02:34]}  hxg5 {[%clk 0:01:51]} 23. hxg5 {[%clk 0:02:35]}  Bg6 {[%clk 0:01:45]} 24. Qg4 {[%clk 0:02:33]}  Qa5 {[%clk 0:01:34]} 25. Rf1 {[%clk 0:02:31]}  Qc3 {[%clk 0:01:33]} 26. Ra2 {[%clk 0:01:45]}  Qxd3 {[%clk 0:01:33]} 27. Bf3 {[%clk 0:01:45]}  Qxc4 {[%clk 0:01:26]} 28. Ra1 {[%clk 0:01:35]}  Qc3 {[%clk 0:01:20]} 29. Ra2 {[%clk 0:01:35]}  d3 {[%clk 0:00:42]} 30. Kg2 {[%clk 0:01:35]}  Qc4 {[%clk 0:00:36]} 31. Ra1 {[%clk 0:01:25]}  Bxf5 {[%clk 0:00:33]} 32. Nxf5 {[%clk 0:01:15]}  Nxf5 {[%clk 0:00:33]} 33. Qxf5 {[%clk 0:01:15]}  g6 {[%clk 0:00:31]} 34. Qh3 {[%clk 0:01:16]}  Bg7 {[%clk 0:00:32]} 35. Rh1 {[%clk 0:01:17]}  Qd4 {[%clk 0:00:29]} 36. Be3 {[%clk 0:01:17]}  Qd6 {[%clk 0:00:26]} 37. Bg4 {[%clk 0:01:16]}  Ree8 {[%clk 0:00:20]} 38. Bxd7 {[%clk 0:01:15]}  Red8 {[%clk 0:00:20]} 39. Bg4 {[%clk 0:01:14]}  c4 {[%clk 0:00:21]} 40. Rac1 {[%clk 0:01:14]}  Qxa3 {[%clk 0:00:18]} 41. Rxc4 {[%clk 0:01:14]}  b6 {[%clk 0:00:17]} 42. Bxb6 {[%clk 0:01:13]}  Qb3 {[%clk 0:00:11]} 43. Bc5 {[%clk 0:01:11]} 1-0


[Site "https://www.chess.com"]

[Event "Titled Tuesday Blitz April 11 Early 2023"]
[White "Iliaguev, Nisim"]
[Black "Demchenko, Anton"]
[WhiteFideId "2817276"]
[BlackFideId "4160258"]
[WhiteElo "2241"]
[BlackElo "2545"]
[Result "1-0"]
[Round "06"]
[TimeControl "180+2"]
[Date "2023.04.11"]
[WhiteClock "0:00:14"]
[BlackClock "0:00:03"]

1. c4 {[%clk 0:03:00]}  e5 {[%clk 0:02:56]} 2. g3 {[%clk 0:03:01]}  Nc6 {[%clk 0:02:56]} 3. Bg2 {[%clk 0:03:01]}  Bc5 {[%clk 0:02:56]} 4. e3 {[%clk 0:03:02]}  d6 {[%clk 0:02:56]} 5. Ne2 {[%clk 0:03:02]}  a6 {[%clk 0:02:54]} 6. O-O {[%clk 0:03:03]}  Ba7 {[%clk 0:02:54]} 7. d4 {[%clk 0:03:03]}  h5 {[%clk 0:02:53]} 8. h4 {[%clk 0:03:03]}  g5 {[%clk 0:02:51]} 9. hxg5 {[%clk 0:02:48]}  h4 {[%clk 0:02:51]} 10. dxe5 {[%clk 0:02:44]}  Nxe5 {[%clk 0:02:39]} 11. Nbc3 {[%clk 0:02:32]}  hxg3 {[%clk 0:02:10]} 12. Nxg3 {[%clk 0:02:22]}  Bg4 {[%clk 0:01:54]} 13. Qa4+ {[%clk 0:02:08]}  b5 {[%clk 0:01:33]} 14. cxb5 {[%clk 0:01:52]}  Kf8 {[%clk 0:01:25]} 15. Qf4 {[%clk 0:01:45]}  Rh4 {[%clk 0:00:45]} 16. Bd2 {[%clk 0:01:22]}  Ng6 {[%clk 0:00:37]} 17. Qe4 {[%clk 0:01:16]}  Rb8 {[%clk 0:00:37]} 18. Nf5 {[%clk 0:01:02]}  Qxg5 {[%clk 0:00:29]} 19. Nxh4 {[%clk 0:01:00]}  Nxh4 {[%clk 0:00:29]} 20. f4 {[%clk 0:00:49]}  Qg7 {[%clk 0:00:30]} 21. Kf2 {[%clk 0:00:36]}  Re8 {[%clk 0:00:29]} 22. Qb7 {[%clk 0:00:36]}  Bc8 {[%clk 0:00:29]} 23. Qd5 {[%clk 0:00:29]}  Nf6 {[%clk 0:00:29]} 24. Qg5 {[%clk 0:00:26]}  Ng4+ {[%clk 0:00:30]} 25. Kg3 {[%clk 0:00:20]}  Nxg2 {[%clk 0:00:12]} 26. Qxg7+ {[%clk 0:00:20]}  Kxg7 {[%clk 0:00:12]} 27. Kxg2 {[%clk 0:00:20]}  Bb7+ {[%clk 0:00:07]} 28. Kg3 {[%clk 0:00:20]}  Nxe3 {[%clk 0:00:08]} 29. Rfe1 {[%clk 0:00:15]}  Nf5+ {[%clk 0:00:08]} 30. Kg4 {[%clk 0:00:16]}  Ne3+ {[%clk 0:00:02]} 31. Bxe3 {[%clk 0:00:16]}  Bxe3 {[%clk 0:00:03]} 32. bxa6 {[%clk 0:00:14]} 1-0


[Site "https://www.chess.com"]

[Event "Titled Tuesday Blitz April 11 Early 2023"]
[White "Ibarra Jerez, Jose Carlos"]
[Black "Skvortsov, Andrei"]
[WhiteFideId "2226332"]
[BlackFideId "24108600"]
[WhiteElo "2638"]
[BlackElo "2259"]
[Result "1-0"]
[Round "06"]
[TimeControl "180+2"]
[Date "2023.04.11"]
[WhiteClock "0:00:54"]
[BlackClock "0:00:48"]

1. e4 {[%clk 0:02:59]}  c5 {[%clk 0:02:59]} 2. Nf3 {[%clk 0:02:59]}  d6 {[%clk 0:02:59]} 3. d4 {[%clk 0:02:59]}  Nf6 {[%clk 0:02:59]} 4. dxc5 {[%clk 0:02:58]}  Nxe4 {[%clk 0:02:57]} 5. cxd6 {[%clk 0:02:58]}  Nxd6 {[%clk 0:02:50]} 6. Nc3 {[%clk 0:02:58]}  Nc6 {[%clk 0:02:47]} 7. Bf4 {[%clk 0:02:58]}  Bg4 {[%clk 0:02:39]} 8. h3 {[%clk 0:02:58]}  Bh5 {[%clk 0:02:38]} 9. Qd5 {[%clk 0:02:57]}  Bxf3 {[%clk 0:02:34]} 10. Qxf3 {[%clk 0:02:56]}  f6 {[%clk 0:02:22]} 11. O-O-O {[%clk 0:02:47]}  e5 {[%clk 0:02:19]} 12. Bb5 {[%clk 0:02:38]}  Qb6 {[%clk 0:02:05]} 13. Nd5 {[%clk 0:02:22]}  Qd8 {[%clk 0:01:33]} 14. Ba4 {[%clk 0:02:06]}  exf4 {[%clk 0:01:08]} 15. Rhe1+ {[%clk 0:02:04]}  Kd7 {[%clk 0:01:08]} 16. Nxf4 {[%clk 0:01:40]}  Qa5 {[%clk 0:01:04]} 17. Bb3 {[%clk 0:01:26]}  Re8 {[%clk 0:01:01]} 18. Ne6 {[%clk 0:01:12]}  Ne5 {[%clk 0:00:48]} 19. Qxb7+ {[%clk 0:00:54]} 1-0


[Site "https://www.chess.com"]

[Event "Titled Tuesday Blitz April 11 Early 2023"]
[White "Bharath Subramaniyam H"]
[Black "Skliarov, Viktor"]
[WhiteFideId "46634827"]
[BlackFideId "14106736"]
[WhiteElo "2395"]
[BlackElo "2317"]
[Result "1-0"]
[Round "06"]
[TimeControl "180+2"]
[Date "2023.04.11"]
[WhiteClock "0:01:28"]
[BlackClock "0:00:04"]

1. d3 {[%clk 0:02:58]}  c5 {[%clk 0:02:58]} 2. Nf3 {[%clk 0:02:57]}  Nc6 {[%clk 0:02:58]} 3. g3 {[%clk 0:02:56]}  g6 {[%clk 0:02:58]} 4. Bg2 {[%clk 0:02:57]}  Bg7 {[%clk 0:02:59]} 5. O-O {[%clk 0:02:58]}  Nf6 {[%clk 0:02:59]} 6. e4 {[%clk 0:02:58]}  O-O {[%clk 0:03:00]} 7. Nbd2 {[%clk 0:02:53]}  d6 {[%clk 0:02:59]} 8. h3 {[%clk 0:02:52]}  Rb8 {[%clk 0:02:58]} 9. Nh2 {[%clk 0:02:50]}  e5 {[%clk 0:02:48]} 10. Nc4 {[%clk 0:02:47]}  b5 {[%clk 0:02:47]} 11. Ne3 {[%clk 0:02:47]}  Nh5 {[%clk 0:02:06]} 12. Nd5 {[%clk 0:02:41]}  Ne7 {[%clk 0:02:01]} 13. Bg5 {[%clk 0:02:35]}  f6 {[%clk 0:01:59]} 14. Nxe7+ {[%clk 0:02:35]}  Qxe7 {[%clk 0:01:59]} 15. Be3 {[%clk 0:02:35]}  Be6 {[%clk 0:01:18]} 16. c3 {[%clk 0:02:33]}  Qd7 {[%clk 0:01:17]} 17. h4 {[%clk 0:02:28]}  Bh3 {[%clk 0:01:08]} 18. Re1 {[%clk 0:02:23]}  Bxg2 {[%clk 0:01:08]} 19. Kxg2 {[%clk 0:02:24]}  f5 {[%clk 0:01:07]} 20. exf5 {[%clk 0:02:19]}  Qxf5 {[%clk 0:01:07]} 21. Kg1 {[%clk 0:01:36]}  b4 {[%clk 0:00:54]} 22. g4 {[%clk 0:01:34]}  Qf6 {[%clk 0:00:36]} 23. gxh5 {[%clk 0:01:33]}  Qxh4 {[%clk 0:00:36]} 24. hxg6 {[%clk 0:01:31]}  Rf6 {[%clk 0:00:27]} 25. Kh1 {[%clk 0:01:31]}  Rxg6 {[%clk 0:00:18]} 26. Rg1 {[%clk 0:01:31]}  Rf8 {[%clk 0:00:13]} 27. Rxg6 {[%clk 0:01:29]}  hxg6 {[%clk 0:00:14]} 28. Qg4 {[%clk 0:01:29]}  Qxg4 {[%clk 0:00:10]} 29. Nxg4 {[%clk 0:01:30]}  bxc3 {[%clk 0:00:11]} 30. bxc3 {[%clk 0:01:30]}  e4 {[%clk 0:00:11]} 31. dxe4 {[%clk 0:01:30]}  Bxc3 {[%clk 0:00:11]} 32. Rd1 {[%clk 0:01:31]}  Re8 {[%clk 0:00:06]} 33. Rxd6 {[%clk 0:01:29]}  Rxe4 {[%clk 0:00:06]} 34. Nf6+ {[%clk 0:01:27]}  Bxf6 {[%clk 0:00:05]} 35. Rxf6 {[%clk 0:01:28]}  Ra4 {[%clk 0:00:04]} 36. Rxg6+ {[%clk 0:01:28]}  Kf7 {[%clk 0:00:04]} 37. Rc6 {[%clk 0:01:29]}  Rxa2 {[%clk 0:00:04]} 38. Rxc5 {[%clk 0:01:29]}  a6 {[%clk 0:00:04]} 39. Kg2 {[%clk 0:01:30]}  Ke6 {[%clk 0:00:05]} 40. Kg3 {[%clk 0:01:28]}  Kf6 {[%clk 0:00:05]} 41. f4 {[%clk 0:01:27]}  Ra3 {[%clk 0:00:04]} 42. Kf3 {[%clk 0:01:28]}  Ke6 {[%clk 0:00:05]} 43. Ke4 {[%clk 0:01:28]}  Ra4+ {[%clk 0:00:05]} 44. Bd4 {[%clk 0:01:28]}  Ra2 {[%clk 0:00:05]} 45. f5+ {[%clk 0:01:28]}  Kf7 {[%clk 0:00:06]} 46. Rc7+ {[%clk 0:01:28]}  Kf8 {[%clk 0:00:06]} 47. Kd5 {[%clk 0:01:27]}  Re2 {[%clk 0:00:04]} 48. Be5 {[%clk 0:01:27]}  Rf2 {[%clk 0:00:03]} 49. Ke6 {[%clk 0:01:28]}  Kg8 {[%clk 0:00:04]} 50. Rc8+ {[%clk 0:01:28]} 1-0


[Site "https://www.chess.com"]

[Event "Titled Tuesday Blitz April 11 Early 2023"]
[White "Gabrielian, Artur"]
[Black "Orlov, Georgi"]
[WhiteFideId "4131002"]
[BlackFideId "2011271"]
[WhiteElo "2432"]
[BlackElo "2595"]
[Result "1-0"]
[Round "06"]
[TimeControl "180+2"]
[Date "2023.04.11"]
[WhiteClock "0:00:14"]
[BlackClock "0:00:01"]

1. e4 {[%clk 0:03:00]}  b6 {[%clk 0:02:55]} 2. d4 {[%clk 0:03:00]}  Bb7 {[%clk 0:02:54]} 3. Nc3 {[%clk 0:03:00]}  e6 {[%clk 0:02:53]} 4. Bd3 {[%clk 0:02:57]}  Nf6 {[%clk 0:02:49]} 5. Qe2 {[%clk 0:02:52]}  Bb4 {[%clk 0:02:45]} 6. Bd2 {[%clk 0:02:51]}  d5 {[%clk 0:02:41]} 7. e5 {[%clk 0:02:32]}  Bxc3 {[%clk 0:02:40]} 8. bxc3 {[%clk 0:02:16]}  Ne4 {[%clk 0:02:40]} 9. Bc1 {[%clk 0:02:17]}  O-O {[%clk 0:02:25]} 10. Qh5 {[%clk 0:02:08]}  f5 {[%clk 0:02:20]} 11. exf6 {[%clk 0:02:04]}  Nxf6 {[%clk 0:02:14]} 12. Qh3 {[%clk 0:02:04]}  Qe7 {[%clk 0:02:04]} 13. Nf3 {[%clk 0:02:00]}  h6 {[%clk 0:02:00]} 14. Ne5 {[%clk 0:01:59]}  Rd8 {[%clk 0:01:48]} 15. O-O {[%clk 0:01:54]}  Nbd7 {[%clk 0:01:44]} 16. Ng6 {[%clk 0:01:50]}  Qf7 {[%clk 0:01:41]} 17. Re1 {[%clk 0:01:51]}  Ne4 {[%clk 0:01:38]} 18. Nf4 {[%clk 0:01:35]}  e5 {[%clk 0:01:33]} 19. Bxe4 {[%clk 0:01:26]}  dxe4 {[%clk 0:01:19]} 20. Ne6 {[%clk 0:01:26]}  Rdc8 {[%clk 0:01:19]} 21. c4 {[%clk 0:01:09]}  exd4 {[%clk 0:01:15]} 22. Nxd4 {[%clk 0:01:09]}  Ne5 {[%clk 0:01:04]} 23. Qg3 {[%clk 0:01:06]}  Ng6 {[%clk 0:00:58]} 24. Bb2 {[%clk 0:00:59]}  Kh7 {[%clk 0:00:52]} 25. h4 {[%clk 0:00:55]}  Rf8 {[%clk 0:00:46]} 26. Rad1 {[%clk 0:00:44]}  Nf4 {[%clk 0:00:41]} 27. Ne2 {[%clk 0:00:24]}  Nh5 {[%clk 0:00:37]} 28. Qe3 {[%clk 0:00:21]}  Rad8 {[%clk 0:00:28]} 29. Ng3 {[%clk 0:00:21]}  Rxd1 {[%clk 0:00:18]} 30. Rxd1 {[%clk 0:00:21]}  Nf4 {[%clk 0:00:16]} 31. Be5 {[%clk 0:00:18]}  Ne6 {[%clk 0:00:12]} 32. h5 {[%clk 0:00:18]}  Qe7 {[%clk 0:00:10]} 33. Qc3 {[%clk 0:00:17]}  Qg5 {[%clk 0:00:09]} 34. Rd7 {[%clk 0:00:17]}  Bc6 {[%clk 0:00:06]} 35. Rd1 {[%clk 0:00:16]}  Nf4 {[%clk 0:00:04]} 36. Bxf4 {[%clk 0:00:16]}  Qxf4 {[%clk 0:00:04]} 37. Qd4 {[%clk 0:00:15]}  Rf7 {[%clk 0:00:03]} 38. Re1 {[%clk 0:00:14]}  Qg4 {[%clk 0:00:03]} 39. Re3 {[%clk 0:00:13]}  Qf4 {[%clk 0:00:02]} 40. Nxe4 {[%clk 0:00:13]}  Bxe4 {[%clk 0:00:01]} 41. Qxe4+ {[%clk 0:00:14]} 1-0


[Site "https://www.chess.com"]

[Event "Titled Tuesday Blitz April 11 Early 2023"]
[White "Kukhmazov, Arsen"]
[Black "Rosen, Eric"]
[WhiteFideId "24108260"]
[BlackFideId "2032562"]
[WhiteElo "2396"]
[BlackElo "2331"]
[Result "0-1"]
[Round "06"]
[TimeControl "180+2"]
[Date "2023.04.11"]
[WhiteClock "0:00:05"]
[BlackClock "0:00:08"]

1. d4 {[%clk 0:01:11]}  d5 {[%clk 0:02:58]} 2. c4 {[%clk 0:01:12]}  e6 {[%clk 0:02:59]} 3. Nf3 {[%clk 0:01:09]}  Nf6 {[%clk 0:02:59]} 4. e3 {[%clk 0:01:10]}  a6 {[%clk 0:02:58]} 5. b3 {[%clk 0:01:09]}  b6 {[%clk 0:02:56]} 6. Bb2 {[%clk 0:01:10]}  Bb7 {[%clk 0:02:56]} 7. Bd3 {[%clk 0:01:10]}  Nbd7 {[%clk 0:02:57]} 8. O-O {[%clk 0:01:10]}  Bd6 {[%clk 0:02:58]} 9. Nbd2 {[%clk 0:01:11]}  O-O {[%clk 0:02:58]} 10. Qe2 {[%clk 0:01:12]}  Qe7 {[%clk 0:02:58]} 11. Ne5 {[%clk 0:01:10]}  c5 {[%clk 0:02:48]} 12. Nxd7 {[%clk 0:01:10]}  Nxd7 {[%clk 0:02:45]} 13. cxd5 {[%clk 0:01:09]}  exd5 {[%clk 0:02:25]} 14. Rac1 {[%clk 0:01:06]}  Nf6 {[%clk 0:02:11]} 15. h3 {[%clk 0:00:59]}  Rfe8 {[%clk 0:02:03]} 16. Rfd1 {[%clk 0:00:57]}  Ne4 {[%clk 0:01:36]} 17. Bxe4 {[%clk 0:00:45]}  dxe4 {[%clk 0:01:37]} 18. Nc4 {[%clk 0:00:45]}  Bc7 {[%clk 0:01:33]} 19. d5 {[%clk 0:00:46]}  Rad8 {[%clk 0:01:30]} 20. d6 {[%clk 0:00:46]}  Bxd6 {[%clk 0:01:31]} 21. Nxb6 {[%clk 0:00:46]}  Bb8 {[%clk 0:01:20]} 22. Nc4 {[%clk 0:00:43]}  Bc8 {[%clk 0:01:13]} 23. Rxd8 {[%clk 0:00:41]}  Rxd8 {[%clk 0:01:13]} 24. Rd1 {[%clk 0:00:41]}  f6 {[%clk 0:01:00]} 25. Rxd8+ {[%clk 0:00:33]}  Qxd8 {[%clk 0:01:00]} 26. Qd2 {[%clk 0:00:33]}  Qxd2 {[%clk 0:00:29]} 27. Nxd2 {[%clk 0:00:34]}  f5 {[%clk 0:00:29]} 28. Kf1 {[%clk 0:00:31]}  Kf7 {[%clk 0:00:27]} 29. Nc4 {[%clk 0:00:26]}  g5 {[%clk 0:00:14]} 30. Ke2 {[%clk 0:00:20]}  Ke6 {[%clk 0:00:13]} 31. Bg7 {[%clk 0:00:19]}  Ba7 {[%clk 0:00:08]} 32. Kd2 {[%clk 0:00:18]}  Bd7 {[%clk 0:00:08]} 33. a4 {[%clk 0:00:16]}  Bc6 {[%clk 0:00:08]} 34. Be5 {[%clk 0:00:16]}  Bd5 {[%clk 0:00:07]} 35. Bc7 {[%clk 0:00:15]}  Kd7 {[%clk 0:00:06]} 36. Be5 {[%clk 0:00:16]}  Kc6 {[%clk 0:00:04]} 37. Kc3 {[%clk 0:00:15]}  g4 {[%clk 0:00:04]} 38. hxg4 {[%clk 0:00:14]}  fxg4 {[%clk 0:00:05]} 39. Nd2 {[%clk 0:00:14]}  h5 {[%clk 0:00:05]} 40. Bf6 {[%clk 0:00:13]}  Bb6 {[%clk 0:00:05]} 41. Nf1 {[%clk 0:00:13]}  Ba5+ {[%clk 0:00:05]} 42. Kc2 {[%clk 0:00:13]}  Bc7 {[%clk 0:00:06]} 43. Bh4 {[%clk 0:00:10]}  Bf7 {[%clk 0:00:06]} 44. Bg3 {[%clk 0:00:11]}  Bd8 {[%clk 0:00:06]} 45. Be5 {[%clk 0:00:08]}  h4 {[%clk 0:00:06]} 46. Nh2 {[%clk 0:00:08]}  Be6 {[%clk 0:00:06]} 47. Bf4 {[%clk 0:00:08]}  Be7 {[%clk 0:00:06]} 48. Kc3 {[%clk 0:00:08]}  Bf6+ {[%clk 0:00:06]} 49. Kc2 {[%clk 0:00:08]}  Kd5 {[%clk 0:00:07]} 50. Nf1 {[%clk 0:00:07]}  h3 {[%clk 0:00:07]} 51. gxh3 {[%clk 0:00:08]}  gxh3 {[%clk 0:00:08]} 52. Bg3 {[%clk 0:00:08]}  Bg4 {[%clk 0:00:08]} 53. Nh2 {[%clk 0:00:08]}  Be2 {[%clk 0:00:08]} 54. Kd2 {[%clk 0:00:06]}  Bh5 {[%clk 0:00:09]} 55. Nf1 {[%clk 0:00:06]}  Bd8 {[%clk 0:00:09]} 56. Bf4 {[%clk 0:00:07]}  Ba5+ {[%clk 0:00:10]} 57. Kc2 {[%clk 0:00:07]}  c4 {[%clk 0:00:09]} 58. Ng3 {[%clk 0:00:08]}  Bf3 {[%clk 0:00:09]} 59. bxc4+ {[%clk 0:00:08]}  Kxc4 {[%clk 0:00:09]} 60. Nf5 {[%clk 0:00:09]}  Kb4 {[%clk 0:00:09]} 61. Nd4 {[%clk 0:00:05]}  Kxa4 {[%clk 0:00:09]} 62. Bd6 {[%clk 0:00:05]}  Be1 {[%clk 0:00:09]} 63. Bg3 {[%clk 0:00:04]}  Kb4 {[%clk 0:00:09]} 64. Nxf3 {[%clk 0:00:02]}  exf3 {[%clk 0:00:08]} 65. Kd1 {[%clk 0:00:03]}  Bc3 {[%clk 0:00:08]} 66. e4 {[%clk 0:00:03]}  Kc4 {[%clk 0:00:08]} 67. Kc2 {[%clk 0:00:04]}  Bd4 {[%clk 0:00:08]} 68. e5 {[%clk 0:00:05]}  Kd5 {[%clk 0:00:08]} 0-1


[Site "https://www.chess.com"]